[Event "Late-Titled-Tuesday-Blitz-June-25-2024"]
[Site "Chess.com"]
[Date "2024.06.25"]
[Round "6"]
[White "Kielinkei"]
[Black "KatakuriDono"]
[Result "1-0"]
[WhiteElo "2505"]
[BlackElo "2324"]
[TimeControl "180+1"]
[EndTime "15:04:47 PDT"]
[Termination "Kielinkei won by resignation"]

1. d4 {[%clk 0:03:00.9]} 1... d5 {[%clk 0:02:58]} 2. Bf4 {[%clk 0:03:00.9]} 2...
Nf6 {[%clk 0:02:57.8]} 3. Nf3 {[%clk 0:03:00.5]} 3... c5 {[%clk 0:02:57.8]} 4.
e3 {[%clk 0:02:59.9]} 4... Nc6 {[%clk 0:02:57.2]} 5. Nbd2 {[%clk 0:02:58.7]}
5... e6 {[%clk 0:02:56.8]} 6. c3 {[%clk 0:02:58.1]} 6... cxd4 {[%clk 0:02:56.8]}
7. exd4 {[%clk 0:02:57.1]} 7... Nh5 {[%clk 0:02:56.7]} 8. Be3 {[%clk 0:02:53]}
8... Bd6 {[%clk 0:02:56.6]} 9. g3 {[%clk 0:02:43.9]} 9... O-O {[%clk 0:02:54.9]}
10. Bd3 {[%clk 0:02:40.5]} 10... f5 {[%clk 0:02:53.6]} 11. Ne5 {[%clk
0:02:25.1]} 11... Qe8 {[%clk 0:02:44.3]} 12. f4 {[%clk 0:02:14.4]} 12... Nf6
{[%clk 0:02:43.2]} 13. O-O {[%clk 0:02:11.9]} 13... Bxe5 {[%clk 0:02:35.7]} 14.
fxe5 {[%clk 0:02:05.8]} 14... Ng4 {[%clk 0:02:35.1]} 15. Bf4 {[%clk 0:02:01]}
15... Qh5 {[%clk 0:02:26.9]} 16. Nf3 {[%clk 0:01:59.5]} 16... g5 {[%clk
0:02:15.8]} 17. Bxg5 {[%clk 0:01:44.6]} 17... Nxh2 {[%clk 0:02:15.3]} 18. Nxh2
{[%clk 0:01:45.5]} 18... Qxg5 {[%clk 0:02:15]} 19. Qf3 {[%clk 0:01:42.2]} 19...
Bd7 {[%clk 0:02:05.1]} 20. Qf4 {[%clk 0:01:42.2]} 20... Qg7 {[%clk 0:01:59.5]}
21. Nf3 {[%clk 0:01:40.7]} 21... Ne7 {[%clk 0:01:58.2]} 22. Kf2 {[%clk
0:01:35.4]} 22... Ng6 {[%clk 0:01:57.4]} 23. Qg5 {[%clk 0:01:35.2]} 23... f4
{[%clk 0:01:41.1]} 24. g4 {[%clk 0:01:35.3]} 24... Be8 {[%clk 0:01:32]} 25. Rh1
{[%clk 0:01:35.3]} 25... Rc8 {[%clk 0:01:21.2]} 26. Rh2 {[%clk 0:01:32.8]} 26...
Rc7 {[%clk 0:01:17.2]} 27. Rah1 {[%clk 0:01:33]} 27... Qh8 {[%clk 0:01:15.3]}
28. Nh4 {[%clk 0:01:06.4]} 28... Rg7 {[%clk 0:01:07.3]} 29. Qh6 {[%clk
0:01:02.2]} 29... a6 {[%clk 0:00:54.8]} 30. Nf3 {[%clk 0:00:51.4]} 30... Bb5
{[%clk 0:00:44.5]} 31. Bxb5 {[%clk 0:00:44.3]} 31... axb5 {[%clk 0:00:44.6]} 32.
Ng5 {[%clk 0:00:44.9]} 32... f3 {[%clk 0:00:34.2]} 33. Nxe6 {[%clk 0:00:39.3]}
33... Nf4 {[%clk 0:00:27.5]} 34. Qxg7+ {[%clk 0:00:32.6]} 34... Qxg7 {[%clk
0:00:26.1]} 35. Nxg7 {[%clk 0:00:33.5]} 35... Kxg7 {[%clk 0:00:26.5]} 36. Kxf3
{[%clk 0:00:32.5]} 36... h5 {[%clk 0:00:19.1]} 37. gxh5 {[%clk 0:00:29.5]} 37...
Nxh5+ {[%clk 0:00:18.6]} 38. Ke3 {[%clk 0:00:29.2]} 38... Nf4 {[%clk 0:00:18.5]}
39. Rg1+ {[%clk 0:00:27.1]} 1-0

[Event "Late-Titled-Tuesday-Blitz-June-25-2024"]
[Site "Chess.com"]
[Date "2024.06.25"]
[Round "6"]
[White "KorolDimitriy75"]
[Black "jinxy2009"]
[Result "1-0"]
[WhiteElo "2404"]
[BlackElo "2255"]
[TimeControl "180+1"]
[EndTime "15:04:47 PDT"]
[Termination "KorolDimitriy75 won by resignation"]

1. d4 {[%clk 0:03:00.9]} 1... d5 {[%clk 0:02:56.2]} 2. c4 {[%clk 0:03:01]} 2...
c6 {[%clk 0:02:55.8]} 3. Nc3 {[%clk 0:03:01]} 3... Nf6 {[%clk 0:02:55.9]} 4. e3
{[%clk 0:03:01.4]} 4... e6 {[%clk 0:02:54.5]} 5. Nf3 {[%clk 0:03:01.3]} 5...
Nbd7 {[%clk 0:02:54.7]} 6. Bd3 {[%clk 0:03:01.3]} 6... Bd6 {[%clk 0:02:39]} 7.
O-O {[%clk 0:03:01]} 7... O-O {[%clk 0:02:38.9]} 8. e4 {[%clk 0:03:01.1]} 8...
dxc4 {[%clk 0:02:36.1]} 9. Bxc4 {[%clk 0:03:00.9]} 9... b5 {[%clk 0:02:31.9]}
10. Bb3 {[%clk 0:02:56.8]} 10... b4 {[%clk 0:02:26.7]} 11. e5 {[%clk 0:02:49.6]}
11... bxc3 {[%clk 0:02:22.7]} 12. bxc3 {[%clk 0:02:38.9]} 12... Be7 {[%clk
0:01:53.2]} 13. exf6 {[%clk 0:02:37.1]} 13... Nxf6 {[%clk 0:01:53.8]} 14. Qd3
{[%clk 0:02:02.7]} 14... c5 {[%clk 0:01:47.9]} 15. Bg5 {[%clk 0:01:47.9]} 15...
cxd4 {[%clk 0:01:40.6]} 16. cxd4 {[%clk 0:01:32]} 16... h6 {[%clk 0:01:37.1]}
17. Bh4 {[%clk 0:01:31.6]} 17... Bb7 {[%clk 0:01:34.8]} 18. Rad1 {[%clk
0:01:21]} 18... Bd5 {[%clk 0:01:16]} 19. Rfe1 {[%clk 0:01:18.5]} 19... Bxb3
{[%clk 0:01:14.8]} 20. Qxb3 {[%clk 0:01:11.6]} 20... Nd5 {[%clk 0:01:14.7]} 21.
Bxe7 {[%clk 0:01:02.8]} 21... Nxe7 {[%clk 0:01:14.7]} 22. h3 {[%clk 0:00:49.9]}
22... Nd5 {[%clk 0:01:10.4]} 23. Ne5 {[%clk 0:00:44.8]} 23... Qg5 {[%clk
0:00:37.1]} 24. Qf3 {[%clk 0:00:35.6]} 24... Rad8 {[%clk 0:00:32]} 25. Re4
{[%clk 0:00:27.5]} 25... Qf6 {[%clk 0:00:20.7]} 26. Qg3 {[%clk 0:00:22.6]} 26...
Kh7 {[%clk 0:00:21]} 27. Rg4 {[%clk 0:00:16.7]} 27... g6 {[%clk 0:00:21.1]} 28.
Re1 {[%clk 0:00:12.8]} 28... h5 {[%clk 0:00:20.6]} 29. Rge4 {[%clk 0:00:11.8]}
29... Ne7 {[%clk 0:00:20.4]} 30. Rf4 {[%clk 0:00:08.2]} 30... Nf5 {[%clk
0:00:20.5]} 31. Qf3 {[%clk 0:00:07.7]} 31... Rxd4 {[%clk 0:00:17.3]} 32. Rxd4
{[%clk 0:00:07.5]} 1-0

[Event "Late-Titled-Tuesday-Blitz-June-25-2024"]
[Site "Chess.com"]
[Date "2024.06.25"]
[Round "6"]
[White "h4parah5"]
[Black "Ali_rastbod"]
[Result "1-0"]
[WhiteElo "2970"]
[BlackElo "2711"]
[TimeControl "180+1"]
[EndTime "15:04:50 PDT"]
[Termination "h4parah5 won by resignation"]

1. Nf3 {[%clk 0:03:00.9]} 1... d5 {[%clk 0:03:00.1]} 2. e3 {[%clk 0:03:00.8]}
2... Nf6 {[%clk 0:03:00.2]} 3. c4 {[%clk 0:03:00.5]} 3... e6 {[%clk 0:03:00.6]}
4. b3 {[%clk 0:03:00.4]} 4... Bd6 {[%clk 0:03:00.2]} 5. Bb2 {[%clk 0:02:59.2]}
5... O-O {[%clk 0:03:00.8]} 6. Be2 {[%clk 0:02:59.2]} 6... Nc6 {[%clk 0:02:54]}
7. d4 {[%clk 0:02:53.3]} 7... b6 {[%clk 0:02:48.9]} 8. O-O {[%clk 0:02:51.9]}
8... Bb7 {[%clk 0:02:49.1]} 9. Nbd2 {[%clk 0:02:50.6]} 9... Re8 {[%clk
0:02:42.9]} 10. Rc1 {[%clk 0:02:39.2]} 10... e5 {[%clk 0:02:40.3]} 11. cxd5
{[%clk 0:02:38.6]} 11... Nxd5 {[%clk 0:02:41.2]} 12. Bb5 {[%clk 0:02:36.9]}
12... e4 {[%clk 0:02:23.5]} 13. Bxc6 {[%clk 0:02:29.6]} 13... Bxc6 {[%clk
0:02:23.4]} 14. Rxc6 {[%clk 0:02:28.6]} 14... Re6 {[%clk 0:02:07.5]} 15. Ne5
{[%clk 0:02:17.1]} 15... f6 {[%clk 0:01:22.4]} 16. Nxe4 {[%clk 0:02:13.9]} 16...
fxe5 {[%clk 0:01:22]} 17. dxe5 {[%clk 0:02:12.5]} 17... Ne7 {[%clk 0:01:13.9]}
18. exd6 {[%clk 0:01:58.8]} 18... Nxc6 {[%clk 0:01:13.7]} 19. Qd5 {[%clk
0:01:58]} 19... Qd7 {[%clk 0:00:58.4]} 20. Ng5 {[%clk 0:01:51.6]} 20... Re8
{[%clk 0:00:58.9]} 21. Nxe6 {[%clk 0:01:51.1]} 21... Rxe6 {[%clk 0:00:55.2]} 22.
dxc7 {[%clk 0:01:46.2]} 22... Qxd5 {[%clk 0:00:55.4]} 23. c8=Q+ {[%clk
0:01:45.7]} 23... Kf7 {[%clk 0:00:55.9]} 24. Qc7+ {[%clk 0:01:45.4]} 24... Re7
{[%clk 0:00:56.4]} 25. Qf4+ {[%clk 0:01:45.1]} 25... Kg8 {[%clk 0:00:56.6]} 26.
Rc1 {[%clk 0:01:43.3]} 26... h6 {[%clk 0:00:48]} 27. Qc4 {[%clk 0:01:39.2]}
27... Qxc4 {[%clk 0:00:48.3]} 28. Rxc4 {[%clk 0:01:39.3]} 28... Rd7 {[%clk
0:00:49.2]} 29. Kf1 {[%clk 0:01:37.1]} 29... Rd1+ {[%clk 0:00:46]} 30. Ke2
{[%clk 0:01:35.9]} 30... Rb1 {[%clk 0:00:46.9]} 31. Bxg7 {[%clk 0:01:28.8]}
31... Kxg7 {[%clk 0:00:42.5]} 32. Rxc6 {[%clk 0:01:28.2]} 32... Rb2+ {[%clk
0:00:43.3]} 33. Kf3 {[%clk 0:01:27.9]} 33... Rxa2 {[%clk 0:00:44]} 34. g4 {[%clk
0:01:27.6]} 34... Rb2 {[%clk 0:00:40.1]} 35. Rc7+ {[%clk 0:01:25.3]} 35... Kg8
{[%clk 0:00:40.3]} 36. Rxa7 {[%clk 0:01:25.2]} 36... Rxb3 {[%clk 0:00:40.9]} 37.
h4 {[%clk 0:01:25.4]} 37... Rb2 {[%clk 0:00:35.6]} 38. g5 {[%clk 0:01:24.9]}
38... hxg5 {[%clk 0:00:35]} 39. hxg5 {[%clk 0:01:25.8]} 39... b5 {[%clk
0:00:34.4]} 40. Rb7 {[%clk 0:01:26]} 40... b4 {[%clk 0:00:34.6]} 41. e4 {[%clk
0:01:25.9]} 41... b3 {[%clk 0:00:34.2]} 42. e5 {[%clk 0:01:25.4]} 42... Rb1
{[%clk 0:00:34.8]} 43. Kf4 {[%clk 0:01:24.6]} 43... b2 {[%clk 0:00:32.9]} 44. f3
{[%clk 0:01:22.6]} 44... Kf8 {[%clk 0:00:29.8]} 45. g6 {[%clk 0:01:22.1]} 45...
Kg8 {[%clk 0:00:29.6]} 46. e6 {[%clk 0:01:20.2]} 46... Re1 {[%clk 0:00:29.7]}
47. Rxb2 {[%clk 0:01:17.9]} 47... Rxe6 {[%clk 0:00:28.3]} 48. Kg5 {[%clk
0:01:18]} 48... Rc6 {[%clk 0:00:23.8]} 49. f4 {[%clk 0:01:17.6]} 49... Rc1
{[%clk 0:00:19.1]} 50. f5 {[%clk 0:01:16.4]} 50... Kf8 {[%clk 0:00:17.8]} 51.
Rb8+ {[%clk 0:01:15.3]} 51... Ke7 {[%clk 0:00:18.3]} 52. f6+ {[%clk 0:01:15.2]}
52... Ke6 {[%clk 0:00:18.4]} 53. Re8+ {[%clk 0:01:14.1]} 53... Kd7 {[%clk
0:00:18.9]} 54. f7 {[%clk 0:01:14.5]} 54... Rg1+ {[%clk 0:00:18.5]} 55. Kf4
{[%clk 0:01:13.4]} 55... Rf1+ {[%clk 0:00:14.4]} 56. Kg3 {[%clk 0:01:12.4]}
56... Rg1+ {[%clk 0:00:14.8]} 57. Kf2 {[%clk 0:01:12.2]} 57... Rxg6 {[%clk
0:00:15.6]} 58. f8=Q {[%clk 0:01:12.4]} 58... Kc7 {[%clk 0:00:12.1]} 59. Qf7+
{[%clk 0:01:11.4]} 1-0

[Event "Late-Titled-Tuesday-Blitz-June-25-2024"]
[Site "Chess.com"]
[Date "2024.06.25"]
[Round "6"]
[White "Jagerrmeisterr"]
[Black "Fandorine"]
[Result "0-1"]
[WhiteElo "2667"]
[BlackElo "2919"]
[TimeControl "180+1"]
[EndTime "15:04:50 PDT"]
[Termination "Fandorine won by resignation"]

1. e4 {[%clk 0:03:00.9]} 1... c5 {[%clk 0:03:00.1]} 2. Nc3 {[%clk 0:03:00.5]}
2... g6 {[%clk 0:02:55.5]} 3. g3 {[%clk 0:02:57.8]} 3... Bg7 {[%clk 0:02:55.5]}
4. Bg2 {[%clk 0:02:58.3]} 4... Nc6 {[%clk 0:02:56.1]} 5. d3 {[%clk 0:02:58.6]}
5... d6 {[%clk 0:02:56.8]} 6. Be3 {[%clk 0:02:58.9]} 6... Rb8 {[%clk 0:02:57.1]}
7. Qd2 {[%clk 0:02:58.3]} 7... b5 {[%clk 0:02:57.3]} 8. h3 {[%clk 0:02:58.7]}
8... b4 {[%clk 0:02:56.3]} 9. Nd1 {[%clk 0:02:59]} 9... a5 {[%clk 0:02:55.1]}
10. f4 {[%clk 0:02:57.6]} 10... h5 {[%clk 0:02:48.8]} 11. Ne2 {[%clk 0:02:49.5]}
11... Nd4 {[%clk 0:02:48.4]} 12. Nc1 {[%clk 0:02:48.5]} 12... e6 {[%clk
0:02:38.1]} 13. c3 {[%clk 0:02:48.4]} 13... Nc6 {[%clk 0:02:36.4]} 14. O-O
{[%clk 0:02:37.1]} 14... Nge7 {[%clk 0:02:36.1]} 15. d4 {[%clk 0:02:28]} 15...
bxc3 {[%clk 0:02:25.3]} 16. bxc3 {[%clk 0:02:24.5]} 16... cxd4 {[%clk
0:02:25.3]} 17. cxd4 {[%clk 0:02:24]} 17... d5 {[%clk 0:02:25.2]} 18. e5 {[%clk
0:02:21.5]} 18... Nf5 {[%clk 0:02:15.8]} 19. Bf2 {[%clk 0:02:21.3]} 19... Ba6
{[%clk 0:02:16.4]} 20. Re1 {[%clk 0:02:21.2]} 20... Rb4 {[%clk 0:02:17]} 21. a3
{[%clk 0:02:12.8]} 21... Rc4 {[%clk 0:02:16.8]} 22. Nb2 {[%clk 0:02:10.5]} 22...
Rxd4 {[%clk 0:02:08]} 23. Bxd4 {[%clk 0:02:10.5]} 23... Ncxd4 {[%clk 0:02:08.9]}
24. Qf2 {[%clk 0:02:02.3]} 24... Qb6 {[%clk 0:01:50.9]} 25. Na4 {[%clk
0:01:18.4]} 25... Qc6 {[%clk 0:01:42.3]} 26. g4 {[%clk 0:00:51.6]} 26... hxg4
{[%clk 0:01:41.1]} 27. hxg4 {[%clk 0:00:52]} 27... Qxa4 {[%clk 0:01:39.9]} 28.
gxf5 {[%clk 0:00:52.2]} 28... Nxf5 {[%clk 0:01:39.6]} 29. Ne2 {[%clk 0:00:46]}
29... Bxe2 {[%clk 0:01:35.7]} 30. Rxe2 {[%clk 0:00:44.3]} 30... Rh4 {[%clk
0:01:29.8]} 31. Qa7 {[%clk 0:00:27.1]} 31... Qd4+ {[%clk 0:01:23.9]} 32. Qxd4
{[%clk 0:00:26.9]} 32... Nxd4 {[%clk 0:01:24.8]} 33. Rf2 {[%clk 0:00:27.8]}
33... Bh6 {[%clk 0:01:22]} 34. Rb1 {[%clk 0:00:15.4]} 34... Bxf4 {[%clk
0:01:19]} 35. Rb8+ {[%clk 0:00:15.6]} 35... Ke7 {[%clk 0:01:19.2]} 36. Rb7+
{[%clk 0:00:16]} 36... Kf8 {[%clk 0:01:19.7]} 37. Kf1 {[%clk 0:00:16.6]} 37...
g5 {[%clk 0:01:17.5]} 38. a4 {[%clk 0:00:16.1]} 38... Nf5 {[%clk 0:01:15.7]} 39.
Rb5 {[%clk 0:00:12.6]} 39... Bxe5 {[%clk 0:01:08.8]} 40. Rxa5 {[%clk 0:00:11.8]}
40... Ng3+ {[%clk 0:01:08.7]} 41. Kg1 {[%clk 0:00:10.7]} 41... Bd4 {[%clk
0:01:09]} 42. Ra8+ {[%clk 0:00:11.1]} 42... Kg7 {[%clk 0:01:09.1]} 43. a5 {[%clk
0:00:11.3]} 43... Rf4 {[%clk 0:01:08.6]} 44. Kh2 {[%clk 0:00:07.5]} 44... Bxf2
{[%clk 0:01:07.9]} 45. a6 {[%clk 0:00:08.2]} 45... Rh4+ {[%clk 0:01:04.9]} 46.
Bh3 {[%clk 0:00:08.5]} 46... g4 {[%clk 0:01:05.1]} 47. Kg2 {[%clk 0:00:09.1]}
47... gxh3+ {[%clk 0:01:02.3]} 48. Kh2 {[%clk 0:00:09.5]} 48... Nf5 {[%clk
0:00:59.5]} 49. a7 {[%clk 0:00:09]} 49... Ra4 {[%clk 0:00:55.8]} 0-1

[Event "Late-Titled-Tuesday-Blitz-June-25-2024"]
[Site "Chess.com"]
[Date "2024.06.25"]
[Round "6"]
[White "lamomiajunior"]
[Black "Sanan_Sjugirov"]
[Result "1/2-1/2"]
[WhiteElo "2763"]
[BlackElo "2999"]
[TimeControl "180+1"]
[EndTime "15:04:51 PDT"]
[Termination "Game drawn by repetition"]

1. d4 {[%clk 0:03:00.9]} 1... Nf6 {[%clk 0:02:59.7]} 2. Nc3 {[%clk 0:03:00.8]}
2... d5 {[%clk 0:02:59.7]} 3. Bf4 {[%clk 0:03:01.2]} 3... Bf5 {[%clk 0:02:56.5]}
4. f3 {[%clk 0:03:01.3]} 4... e6 {[%clk 0:02:42.2]} 5. g4 {[%clk 0:03:00.9]}
5... Bg6 {[%clk 0:02:42.2]} 6. Qd2 {[%clk 0:03:01.8]} 6... a6 {[%clk 0:02:33.3]}
7. h4 {[%clk 0:03:01.1]} 7... h5 {[%clk 0:02:33.1]} 8. g5 {[%clk 0:03:01.3]}
8... Nfd7 {[%clk 0:02:33.1]} 9. e4 {[%clk 0:03:02.2]} 9... Nb6 {[%clk 0:02:31]}
10. Nh3 {[%clk 0:02:58.7]} 10... Nc6 {[%clk 0:02:27.4]} 11. O-O-O {[%clk
0:02:56.8]} 11... Qd7 {[%clk 0:02:15.6]} 12. Bg3 {[%clk 0:02:55.1]} 12... O-O-O
{[%clk 0:02:07.6]} 13. Nf4 {[%clk 0:02:51.6]} 13... dxe4 {[%clk 0:02:03.1]} 14.
Nxg6 {[%clk 0:02:48.8]} 14... fxg6 {[%clk 0:02:04]} 15. Nxe4 {[%clk 0:02:45.2]}
15... Qxd4 {[%clk 0:01:57.5]} 16. Qxd4 {[%clk 0:02:43.4]} 16... Nxd4 {[%clk
0:01:55.8]} 17. Bh3 {[%clk 0:02:43.8]} 17... Nf5 {[%clk 0:01:54.4]} 18. Be5
{[%clk 0:02:43.5]} 18... Re8 {[%clk 0:01:30]} 19. b3 {[%clk 0:02:40.8]} 19...
Nxh4 {[%clk 0:01:22.8]} 20. Rd3 {[%clk 0:02:36]} 20... Nf5 {[%clk 0:01:13.5]}
21. c4 {[%clk 0:02:35.3]} 21... Nd7 {[%clk 0:01:10.9]} 22. Bc3 {[%clk
0:02:33.3]} 22... Nc5 {[%clk 0:01:08.6]} 23. Nxc5 {[%clk 0:02:25.4]} 23... Bxc5
{[%clk 0:01:09.5]} 24. Re1 {[%clk 0:02:25.9]} 24... Bd6 {[%clk 0:01:04]} 25. Kc2
{[%clk 0:02:25.4]} 25... Bf4 {[%clk 0:01:01.9]} 26. Bd2 {[%clk 0:02:06.3]} 26...
Bxd2 {[%clk 0:00:58.1]} 27. Rxd2 {[%clk 0:02:07.2]} 27... Re7 {[%clk 0:00:34.2]}
28. c5 {[%clk 0:02:06.8]} 28... Rhe8 {[%clk 0:00:31.1]} 29. Re5 {[%clk
0:02:05.9]} 29... c6 {[%clk 0:00:28]} 30. b4 {[%clk 0:02:04.8]} 30... Kc7 {[%clk
0:00:28.2]} 31. Kc3 {[%clk 0:02:04]} 31... Rd7 {[%clk 0:00:24.3]} 32. Rde2
{[%clk 0:02:03.6]} 32... Red8 {[%clk 0:00:21.2]} 33. Bxf5 {[%clk 0:01:55.9]}
33... exf5 {[%clk 0:00:21.4]} 34. Re6 {[%clk 0:01:52.3]} 34... Rd3+ {[%clk
0:00:20.1]} 35. Kc2 {[%clk 0:01:52.9]} 35... Rxf3 {[%clk 0:00:14]} 36. Rxg6
{[%clk 0:01:53.5]} 36... Rd7 {[%clk 0:00:13.9]} 37. Rge6 {[%clk 0:01:52.1]}
37... Rg3 {[%clk 0:00:12.1]} 38. Re8 {[%clk 0:01:50.8]} 38... Rxg5 {[%clk
0:00:09.4]} 39. Rh8 {[%clk 0:01:51.7]} 39... Rd8 {[%clk 0:00:04.3]} 40. Re7+
{[%clk 0:01:51.1]} 40... Kc8 {[%clk 0:00:04.8]} 41. Rh7 {[%clk 0:01:50.3]} 41...
f4 {[%clk 0:00:05]} 42. Rf7 {[%clk 0:01:50.5]} 42... Rg4 {[%clk 0:00:04.6]} 43.
Rxh5 {[%clk 0:01:50.2]} 43... Rg2+ {[%clk 0:00:04.6]} 44. Kc3 {[%clk 0:01:50.3]}
44... Rg3+ {[%clk 0:00:05.3]} 45. Kc4 {[%clk 0:01:49.4]} 45... f3 {[%clk
0:00:05.4]} 46. Rhf5 {[%clk 0:01:49]} 46... Rg4+ {[%clk 0:00:05.4]} 47. Kc3
{[%clk 0:01:49.1]} 47... Rdd4 {[%clk 0:00:04.7]} 48. a3 {[%clk 0:01:48.5]} 48...
Rd7 {[%clk 0:00:03.2]} 49. Rf8+ {[%clk 0:01:48.1]} 49... Kc7 {[%clk 0:00:03.6]}
50. Rxf3 {[%clk 0:01:48.8]} 50... g5 {[%clk 0:00:03.5]} 51. Rg8 {[%clk
0:01:48.3]} 51... Rf4 {[%clk 0:00:03.5]} 52. Rxf4 {[%clk 0:01:47.2]} 52... gxf4
{[%clk 0:00:03.7]} 53. Rf8 {[%clk 0:01:48.1]} 53... Re7 {[%clk 0:00:03.9]} 54.
Rxf4 {[%clk 0:01:47.9]} 54... Re3+ {[%clk 0:00:04.6]} 55. Kb2 {[%clk 0:01:48.6]}
55... a5 {[%clk 0:00:04.9]} 56. Rf7+ {[%clk 0:01:47.7]} 56... Kb8 {[%clk
0:00:05]} 57. Rg7 {[%clk 0:01:45.9]} 57... Ka7 {[%clk 0:00:05.2]} 58. Rh7 {[%clk
0:01:44.6]} 58... axb4 {[%clk 0:00:04.5]} 59. axb4 {[%clk 0:01:45.5]} 59... Ka6
{[%clk 0:00:05.1]} 60. Rg7 {[%clk 0:01:43.2]} 60... Rd3 {[%clk 0:00:05.5]} 61.
Rh7 {[%clk 0:01:43.6]} 61... Re3 {[%clk 0:00:05.9]} 62. Rg7 {[%clk 0:01:43.9]}
62... Rd3 {[%clk 0:00:05.7]} 63. Re7 {[%clk 0:01:44.1]} 63... Rd8 {[%clk
0:00:05.4]} 64. Kb3 {[%clk 0:01:43.7]} 64... Rd3+ {[%clk 0:00:05.5]} 65. Ka4
{[%clk 0:01:42.5]} 65... Rd1 {[%clk 0:00:05.8]} 66. Re8 {[%clk 0:01:42.2]} 66...
Ra1+ {[%clk 0:00:06]} 67. Kb3 {[%clk 0:01:42.9]} 67... Kb5 {[%clk 0:00:06.3]}
68. Rb8 {[%clk 0:01:42.4]} 68... Rb1+ {[%clk 0:00:04.9]} 69. Kc3 {[%clk
0:01:42.9]} 69... Rc1+ {[%clk 0:00:04.6]} 70. Kb3 {[%clk 0:01:43.4]} 70... Rb1+
{[%clk 0:00:04.8]} 71. Kc3 {[%clk 0:01:44.1]} 71... Rc1+ {[%clk 0:00:05.2]} 72.
Kb3 {[%clk 0:01:44.3]} 72... Rb1+ {[%clk 0:00:05.5]} 1/2-1/2

[Event "Late-Titled-Tuesday-Blitz-June-25-2024"]
[Site "Chess.com"]
[Date "2024.06.25"]
[Round "6"]
[White "mostafa_sakha"]
[Black "prxcess_brownie"]
[Result "0-1"]
[WhiteElo "2430"]
[BlackElo "2243"]
[TimeControl "180+1"]
[EndTime "15:04:51 PDT"]
[Termination "prxcess_brownie won by resignation"]

1. d4 {[%clk 0:03:00]} 1... Nf6 {[%clk 0:02:58.4]} 2. c4 {[%clk 0:03:00.2]} 2...
g6 {[%clk 0:02:57.3]} 3. Nc3 {[%clk 0:03:00.4]} 3... Bg7 {[%clk 0:02:56.6]} 4.
e4 {[%clk 0:03:00.5]} 4... d6 {[%clk 0:02:56.7]} 5. Nf3 {[%clk 0:03:00.4]} 5...
O-O {[%clk 0:02:56.7]} 6. Be2 {[%clk 0:03:01]} 6... e5 {[%clk 0:02:56.6]} 7. O-O
{[%clk 0:03:01.5]} 7... Nc6 {[%clk 0:02:56.6]} 8. d5 {[%clk 0:03:01.8]} 8... Ne7
{[%clk 0:02:57]} 9. Ne1 {[%clk 0:03:02.4]} 9... Ne8 {[%clk 0:02:57.1]} 10. Be3
{[%clk 0:03:03]} 10... f5 {[%clk 0:02:57.3]} 11. f3 {[%clk 0:03:03.6]} 11... f4
{[%clk 0:02:57.5]} 12. Bf2 {[%clk 0:03:04.2]} 12... g5 {[%clk 0:02:57.7]} 13. c5
{[%clk 0:03:04.1]} 13... Ng6 {[%clk 0:02:56.6]} 14. Rc1 {[%clk 0:03:03.6]} 14...
h5 {[%clk 0:02:54.2]} 15. Kh1 {[%clk 0:02:56.9]} 15... Rf7 {[%clk 0:02:39.7]}
16. Rg1 {[%clk 0:02:50.5]} 16... Nf6 {[%clk 0:02:37.7]} 17. g3 {[%clk
0:02:35.8]} 17... g4 {[%clk 0:02:33.9]} 18. gxf4 {[%clk 0:02:20.5]} 18... Nxf4
{[%clk 0:02:32.3]} 19. Bh4 {[%clk 0:02:20.2]} 19... Qf8 {[%clk 0:02:09.1]} 20.
Nd3 {[%clk 0:01:59.3]} 20... Nxe2 {[%clk 0:02:03.4]} 21. Qxe2 {[%clk 0:01:57.7]}
21... gxf3 {[%clk 0:01:57.4]} 22. Qxf3 {[%clk 0:01:57.2]} 22... Ng4 {[%clk
0:01:47.8]} 23. Qg3 {[%clk 0:01:16.7]} 23... Rf3 {[%clk 0:01:43.4]} 24. Qg2
{[%clk 0:01:03.6]} 24... Rxd3 {[%clk 0:01:38.7]} 25. Rcf1 {[%clk 0:01:03.8]}
25... Qe8 {[%clk 0:01:38.7]} 26. h3 {[%clk 0:00:57.4]} 26... Rxh3+ {[%clk
0:01:08.7]} 27. Qxh3 {[%clk 0:00:58.3]} 27... Nf2+ {[%clk 0:01:08.7]} 28. Rxf2
{[%clk 0:00:58.3]} 28... Bxh3 {[%clk 0:01:08.4]} 29. Rg5 {[%clk 0:00:36]} 29...
Kh7 {[%clk 0:00:56.6]} 30. Ne2 {[%clk 0:00:35]} 30... Bg4 {[%clk 0:00:53.3]} 31.
Ng3 {[%clk 0:00:33.3]} 31... Bh6 {[%clk 0:00:45.5]} 32. Rxg4 {[%clk 0:00:18.8]}
32... hxg4 {[%clk 0:00:46.4]} 33. Nf5 {[%clk 0:00:18]} 33... Qh5 {[%clk
0:00:44.7]} 34. Kg2 {[%clk 0:00:17.1]} 34... Rf8 {[%clk 0:00:44.6]} 35. Bg3
{[%clk 0:00:14.5]} 35... Qh3+ {[%clk 0:00:31.5]} 36. Kg1 {[%clk 0:00:14.1]}
36... Rxf5 {[%clk 0:00:31.5]} 37. exf5 {[%clk 0:00:11.9]} 37... Be3 {[%clk
0:00:27.6]} 0-1